[Event "GrandPrix_29.05"]
[Site "Chess.com"]
[Date "2020.05.29"]
[Round "3"]
[White "matej2221"]
[Black "SmirnovTimofey2000"]
[Result "1-0"]
[WhiteElo "2216"]
[BlackElo "2158"]
[TimeControl "600+2"]
[EndTime "10:32:07 PDT"]
[Termination "matej2221 won by resignation"]

1. e4 {[%clk 0:10:01.9]} 1... c5 {[%clk 0:09:39.1]} 2. Nf3 {[%clk 0:10:02.5]}
2... d6 {[%clk 0:09:38.2]} 3. d4 {[%clk 0:10:03.1]} 3... cxd4 {[%clk 0:09:39.4]}
4. Nxd4 {[%clk 0:10:04.1]} 4... Nf6 {[%clk 0:09:40.4]} 5. f3 {[%clk 0:10:04.3]}
5... e5 {[%clk 0:09:38.5]} 6. Nb3 {[%clk 0:10:05]} 6... Be6 {[%clk 0:09:39]} 7.
c4 {[%clk 0:10:05.7]} 7... Nbd7 {[%clk 0:09:34]} 8. Be3 {[%clk 0:10:03]} 8... a5
{[%clk 0:09:27.8]} 9. Nc3 {[%clk 0:09:59]} 9... a4 {[%clk 0:09:27.5]} 10. Nd2
{[%clk 0:09:59.7]} 10... Qa5 {[%clk 0:09:26.7]} 11. Ndb1 {[%clk 0:09:51.8]}
11... Qb4 {[%clk 0:08:29.8]} 12. Na3 {[%clk 0:09:24.1]} 12... Be7 {[%clk
0:08:08.4]} 13. Qd2 {[%clk 0:09:14.5]} 13... O-O {[%clk 0:08:04]} 14. Be2 {[%clk
0:09:02.3]} 14... Bd8 {[%clk 0:07:27.6]} 15. Nd5 {[%clk 0:08:44.5]} 15... Qxd2+
{[%clk 0:07:22.9]} 16. Bxd2 {[%clk 0:08:01.6]} 16... Ba5 {[%clk 0:06:56.6]} 17.
Bxa5 {[%clk 0:07:55]} 17... Rxa5 {[%clk 0:06:55.5]} 18. Nb5 {[%clk 0:07:52]}
18... Ra6 {[%clk 0:06:40.2]} 19. Ndc7 {[%clk 0:07:31.8]} 19... Rc6 {[%clk
0:06:32.9]} 20. Nxe6 {[%clk 0:07:15]} 20... fxe6 {[%clk 0:06:31.6]} 21. Rd1
{[%clk 0:07:11.9]} 21... Ne8 {[%clk 0:06:30.4]} 22. Kf2 {[%clk 0:06:55.3]} 22...
Kf7 {[%clk 0:06:19.6]} 23. Ke3 {[%clk 0:06:52.7]} 23... Ke7 {[%clk 0:06:19.2]}
24. Rd2 {[%clk 0:06:48.8]} 24... Nb6 {[%clk 0:04:54.8]} 25. Rhd1 {[%clk
0:06:40.2]} 25... Nc8 {[%clk 0:04:08.3]} 26. Rc1 {[%clk 0:06:19.2]} 26... Nc7
{[%clk 0:04:05.9]} 27. Na3 {[%clk 0:03:55.3]} 27... Na6 {[%clk 0:03:12.6]} 28.
Bd1 {[%clk 0:03:12.6]} 28... Nb6 {[%clk 0:03:10.7]} 29. b3 {[%clk 0:02:41.6]}
29... axb3 {[%clk 0:03:07.2]} 30. axb3 {[%clk 0:02:27.2]} 30... d5 {[%clk
0:02:52.7]} 31. exd5 {[%clk 0:02:13.2]} 31... exd5 {[%clk 0:02:51.7]} 32. Bc2
{[%clk 0:01:55.4]} 32... d4+ {[%clk 0:02:48.7]} 33. Ke2 {[%clk 0:01:52]} 33...
Nc5 {[%clk 0:02:32.6]} 34. Nb5 {[%clk 0:01:16.6]} 34... d3+ {[%clk 0:01:29.1]}
35. Rxd3 {[%clk 0:01:17.1]} 35... Nxd3 {[%clk 0:01:29.8]} 36. Bxd3 {[%clk
0:01:18.6]} 36... Nd7 {[%clk 0:01:18.9]} 37. b4 {[%clk 0:00:22.1]} 37... Nf6
{[%clk 0:00:38.3]} 38. Ra1 {[%clk 0:00:11.2]} 38... Rb8 {[%clk 0:00:11.1]} 39.
c5 {[%clk 0:00:06.6]} 39... Ra6 {[%clk 0:00:10]} 40. Rb1 {[%clk 0:00:02.7]}
40... Ra2+ {[%clk 0:00:09.7]} 41. Ke3 {[%clk 0:00:02.9]} 41... Rd8 {[%clk
0:00:03.7]} 42. Nd6 {[%clk 0:00:03.8]} 42... Nd5+ {[%clk 0:00:03.4]} 43. Ke4
{[%clk 0:00:04]} 43... Nc3+ {[%clk 0:00:04.6]} 44. Kxe5 {[%clk 0:00:05.4]} 44...
Nxb1 {[%clk 0:00:06.5]} 45. Bxb1 {[%clk 0:00:06.6]} 45... Rb2 {[%clk 0:00:07.4]}
46. Bxh7 {[%clk 0:00:04.6]} 46... Rxb4 {[%clk 0:00:07.8]} 47. Be4 {[%clk
0:00:06.2]} 47... b6 {[%clk 0:00:05.8]} 48. Nf5+ {[%clk 0:00:03.6]} 48... Kf7
{[%clk 0:00:05.6]} 49. cxb6 {[%clk 0:00:04.5]} 49... Rxb6 {[%clk 0:00:05.7]} 50.
Ne3 {[%clk 0:00:05.6]} 50... Re6+ {[%clk 0:00:05.9]} 51. Kf4 {[%clk 0:00:06.6]}
51... Rf6+ {[%clk 0:00:06.6]} 52. Kg3 {[%clk 0:00:06.7]} 52... Kf8 {[%clk
0:00:06.7]} 53. Ng4 {[%clk 0:00:07.2]} 53... Re6 {[%clk 0:00:07.5]} 54. Ne3
{[%clk 0:00:07.6]} 54... Rd2 {[%clk 0:00:07.5]} 55. Nf5 {[%clk 0:00:07.9]} 55...
Ra6 {[%clk 0:00:06.7]} 56. Ne3 {[%clk 0:00:06.1]} 56... Raa2 {[%clk 0:00:06.8]}
57. Kf4 {[%clk 0:00:06.8]} 57... Re2 {[%clk 0:00:07.6]} 58. h4 {[%clk
0:00:07.8]} 58... Rxg2 {[%clk 0:00:04.9]} 59. Nxg2 {[%clk 0:00:08.7]} 59... Rxg2
{[%clk 0:00:06.8]} 60. Bf5 {[%clk 0:00:09.5]} 60... Ke7 {[%clk 0:00:06.5]} 61.
Bg4 {[%clk 0:00:10.7]} 61... Kf6 {[%clk 0:00:07.5]} 62. h5 {[%clk 0:00:12]}
62... Rg1 {[%clk 0:00:08]} 63. Bd7 {[%clk 0:00:10.6]} 63... Rd1 {[%clk
0:00:05.2]} 64. Bc6 {[%clk 0:00:10.5]} 64... Rd6 {[%clk 0:00:04.5]} 65. Be4
{[%clk 0:00:11.3]} 65... Rd1 {[%clk 0:00:05.1]} 66. Bg6 {[%clk 0:00:11.6]} 66...
Rg1 {[%clk 0:00:05.7]} 67. Be4 {[%clk 0:00:12.5]} 67... Rg2 {[%clk 0:00:06.6]}
68. Bg6 {[%clk 0:00:13.5]} 68... Rh2 {[%clk 0:00:07.7]} 69. Kg4 {[%clk 0:00:12]}
69... Rh1 {[%clk 0:00:07.5]} 70. Kf4 {[%clk 0:00:13.1]} 70... Rh4+ {[%clk
0:00:07.9]} 71. Kg3 {[%clk 0:00:14.3]} 71... Kg5 {[%clk 0:00:09.8]} 72. Be8
{[%clk 0:00:14.9]} 72... Rf4 {[%clk 0:00:10.3]} 73. Bg6 {[%clk 0:00:14.2]} 73...
Ra4 {[%clk 0:00:10.6]} 74. Be8 {[%clk 0:00:15.2]} 74... Ra1 {[%clk 0:00:11.1]}
75. f4+ {[%clk 0:00:14.1]} 75... Kf6 {[%clk 0:00:10.2]} 76. Bg6 {[%clk
0:00:14.8]} 76... Ra3+ {[%clk 0:00:10.3]} 77. Kg4 {[%clk 0:00:15]} 77... Ra5
{[%clk 0:00:11]} 78. Kh4 {[%clk 0:00:15.2]} 78... Ke6 {[%clk 0:00:10.6]} 79. Kg4
{[%clk 0:00:16]} 79... Ra6 {[%clk 0:00:09.1]} 80. Kh4 {[%clk 0:00:14.9]} 80...
Kf6 {[%clk 0:00:06.9]} 81. Kg4 {[%clk 0:00:15.7]} 81... Ra1 {[%clk 0:00:07.7]}
82. Kf3 {[%clk 0:00:13.3]} 82... Rg1 {[%clk 0:00:08.5]} 83. Ke4 {[%clk
0:00:12.9]} 83... Ke6 {[%clk 0:00:07.8]} 84. Kd4 {[%clk 0:00:08.3]} 84... Rg4
{[%clk 0:00:07.2]} 85. Ke4 {[%clk 0:00:06.6]} 85... Rg3 {[%clk 0:00:07.9]} 86.
Bf5+ {[%clk 0:00:07.4]} 86... Kd6 {[%clk 0:00:08.5]} 87. Bg6 {[%clk 0:00:06.9]}
87... Ra3 {[%clk 0:00:07.7]} 88. Kf5 {[%clk 0:00:07.2]} 88... Ra5+ {[%clk
0:00:07.7]} 89. Kg4 {[%clk 0:00:07.3]} 89... Kd5 {[%clk 0:00:07.7]} 90. Bh7
{[%clk 0:00:04.7]} 90... Kd4 {[%clk 0:00:07.6]} 91. f5 {[%clk 0:00:04.6]} 91...
Ke5 {[%clk 0:00:05.9]} 92. Kg5 {[%clk 0:00:06.1]} 92... Ra1 {[%clk 0:00:06.3]}
93. Kg6 {[%clk 0:00:06.1]} 93... Rg1+ {[%clk 0:00:06.4]} 94. Kf7 {[%clk
0:00:07.4]} 94... Kf4 {[%clk 0:00:04.4]} 95. Bg6 {[%clk 0:00:08.3]} 95... Ra1
{[%clk 0:00:04.2]} 96. Kxg7 {[%clk 0:00:09.4]} 96... Ra7+ {[%clk 0:00:02.9]} 97.
Kh6 {[%clk 0:00:09.7]} 97... Rb7 {[%clk 0:00:03.3]} 98. f6 {[%clk 0:00:10.5]}
98... Ke5 {[%clk 0:00:02.9]} 99. f7 {[%clk 0:00:11.7]} 99... Rb8 {[%clk
0:00:03.4]} 100. Kg7 {[%clk 0:00:12.8]} 100... Ke6 {[%clk 0:00:04.2]} 101. h6
{[%clk 0:00:11.8]} 101... Ke7 {[%clk 0:00:03.7]} 102. h7 {[%clk 0:00:13]} 102...
Rf8 {[%clk 0:00:03.4]} 103. h8=Q {[%clk 0:00:13.7]} 103... Rxh8 {[%clk
0:00:04.7]} 104. Kxh8 {[%clk 0:00:15.6]} 104... Kf8 {[%clk 0:00:06.6]} 105. Kh7
{[%clk 0:00:17]} 1-0

[Event "GrandPrix_29.05"]
[Site "Chess.com"]
[Date "2020.05.29"]
[Round "3"]
[White "FCLitras"]
[Black "Supernotar"]
[Result "1/2-1/2"]
[WhiteElo "1773"]
[BlackElo "2123"]
[TimeControl "600+2"]
[EndTime "10:34:04 PDT"]
[Termination "Game drawn by agreement"]

1. d4 {[%clk 0:10:01.9]} 1... d5 {[%clk 0:09:58.5]} 2. c4 {[%clk 0:10:01.6]}
2... dxc4 {[%clk 0:09:59.2]} 3. Nf3 {[%clk 0:10:00.7]} 3... Nf6 {[%clk
0:10:00.2]} 4. e3 {[%clk 0:10:01.6]} 4... e6 {[%clk 0:10:01.1]} 5. Bxc4 {[%clk
0:10:02.1]} 5... a6 {[%clk 0:10:02.3]} 6. O-O {[%clk 0:09:58.8]} 6... b5 {[%clk
0:10:02.2]} 7. Bb3 {[%clk 0:09:59.6]} 7... Bb7 {[%clk 0:10:02.9]} 8. a4 {[%clk
0:09:53.5]} 8... b4 {[%clk 0:10:03.5]} 9. Nbd2 {[%clk 0:09:53.7]} 9... Nbd7
{[%clk 0:10:04.2]} 10. Re1 {[%clk 0:09:49.3]} 10... c5 {[%clk 0:10:04.1]} 11. e4
{[%clk 0:09:36.4]} 11... Be7 {[%clk 0:09:59.8]} 12. d5 {[%clk 0:09:09.3]} 12...
exd5 {[%clk 0:09:59.4]} 13. exd5 {[%clk 0:09:07.6]} 13... O-O {[%clk 0:09:36.8]}
14. Nf1 {[%clk 0:07:30.8]} 14... Nb6 {[%clk 0:09:04.5]} 15. Bg5 {[%clk
0:06:42.3]} 15... c4 {[%clk 0:07:58.2]} 16. a5 {[%clk 0:06:35.8]} 16... cxb3
{[%clk 0:07:43.1]} 17. axb6 {[%clk 0:06:36.1]} 17... h6 {[%clk 0:07:36.9]} 18.
Bxf6 {[%clk 0:06:29.2]} 18... Bxf6 {[%clk 0:07:37.2]} 19. Qxb3 {[%clk
0:06:22.5]} 19... Qxb6 {[%clk 0:07:32.9]} 20. Ne3 {[%clk 0:06:21.1]} 20... Rfd8
{[%clk 0:07:24.9]} 21. Rad1 {[%clk 0:06:14.5]} 21... a5 {[%clk 0:07:21.4]} 22.
Ng4 {[%clk 0:06:08.8]} 22... a4 {[%clk 0:06:55.6]} 23. Nxf6+ {[%clk 0:06:06.7]}
23... Qxf6 {[%clk 0:06:51.3]} 24. Qxb4 {[%clk 0:05:46.5]} 24... Bxd5 {[%clk
0:06:51.6]} 25. Qd4 {[%clk 0:05:25.4]} 25... Qg6 {[%clk 0:06:23.2]} 26. Qf4
{[%clk 0:05:19.4]} 26... Bxf3 {[%clk 0:05:32.1]} 27. Qxf3 {[%clk 0:04:49.7]}
27... Qc2 {[%clk 0:05:30.1]} 28. Rb1 {[%clk 0:02:57.6]} 28... Rab8 {[%clk
0:05:27.7]} 29. Rec1 {[%clk 0:02:57.4]} 29... Rxb2 {[%clk 0:05:14.5]} 30. Ra1
{[%clk 0:02:57.5]} 30... Qb3 {[%clk 0:04:30.2]} 31. h4 {[%clk 0:02:44.1]} 31...
Qxf3 {[%clk 0:03:37.4]} 32. gxf3 {[%clk 0:02:46]} 32... Rdd2 {[%clk 0:03:37.9]}
33. Rxa4 {[%clk 0:02:38.4]} 33... Rxf2 {[%clk 0:03:33.4]} 34. Rf4 {[%clk
0:02:38.7]} 34... Rg2+ {[%clk 0:03:33.3]} 35. Kh1 {[%clk 0:02:39.4]} 35... Rh2+
{[%clk 0:03:33.7]} 36. Kg1 {[%clk 0:02:40.2]} 36... Rbg2+ {[%clk 0:03:34.5]} 37.
Kf1 {[%clk 0:02:41.3]} 37... Rf2+ {[%clk 0:03:11.3]} 38. Kg1 {[%clk 0:02:41.8]}
38... Rhg2+ {[%clk 0:03:12.5]} 39. Kh1 {[%clk 0:02:42.7]} 39... Rh2+ {[%clk
0:00:53.8]} 40. Kg1 {[%clk 0:02:42.3]} 40... Rfg2+ {[%clk 0:00:54.9]} 41. Kf1
{[%clk 0:02:43.2]} 41... Rh1+ {[%clk 0:00:37.1]} 42. Kxg2 {[%clk 0:02:43.6]}
42... Rxc1 {[%clk 0:00:38]} 43. Ra4 {[%clk 0:02:38.6]} 43... g6 {[%clk
0:00:28.7]} 44. Kg3 {[%clk 0:02:39.1]} 44... Kg7 {[%clk 0:00:27.6]} 45. Ra6
{[%clk 0:02:40.1]} 45... Rg1+ {[%clk 0:00:27.3]} 46. Kh2 {[%clk 0:02:40.3]}
46... Rf1 {[%clk 0:00:27.5]} 47. Kg2 {[%clk 0:02:41.3]} 47... Rc1 {[%clk
0:00:28.2]} 48. Kg3 {[%clk 0:02:42.5]} 48... Rc5 {[%clk 0:00:28.2]} 49. Rb6
{[%clk 0:02:42.8]} 49... Re5 {[%clk 0:00:28.6]} 50. Ra6 {[%clk 0:02:43.7]} 50...
Re6 {[%clk 0:00:29.5]} 51. Ra5 {[%clk 0:02:44.6]} 51... Kf6 {[%clk 0:00:30]} 52.
Rb5 {[%clk 0:02:45.5]} 52... Rd6 {[%clk 0:00:30.1]} 53. Rb7 {[%clk 0:02:45]}
53... Rc6 {[%clk 0:00:29.6]} 54. Ra7 {[%clk 0:02:45.9]} 54... Rb6 {[%clk
0:00:30.4]} 55. Rc7 {[%clk 0:02:46.6]} 55... Re6 {[%clk 0:00:30.6]} 56. Ra7
{[%clk 0:02:47.1]} 56... Re7 {[%clk 0:00:29]} 57. Ra5 {[%clk 0:02:48]} 57... Re5
{[%clk 0:00:25.6]} 58. Ra7 {[%clk 0:02:48.2]} 58... Ke6 {[%clk 0:00:25.3]} 59.
Rb7 {[%clk 0:02:46.4]} 59... Ra5 {[%clk 0:00:18.9]} 60. Rc7 {[%clk 0:02:46.7]}
60... Ra6 {[%clk 0:00:13.5]} 61. Rb7 {[%clk 0:02:47.3]} 61... Rc6 {[%clk
0:00:12.6]} 62. Ra7 {[%clk 0:02:48.2]} 62... Rd6 {[%clk 0:00:13.8]} 63. Rb7
{[%clk 0:02:49]} 63... f6 {[%clk 0:00:12.1]} 64. Rh7 {[%clk 0:02:46.2]} 64... h5
{[%clk 0:00:13]} 65. Ra7 {[%clk 0:02:45.5]} 65... Rd5 {[%clk 0:00:12.6]} 66.
Ra6+ {[%clk 0:02:36.3]} 66... Kf5 {[%clk 0:00:13.4]} 67. Ra8 {[%clk 0:02:34]}
67... Rc5 {[%clk 0:00:13.7]} 68. Rb8 {[%clk 0:02:34.4]} 68... Rd5 {[%clk
0:00:14.7]} 69. Rf8 {[%clk 0:02:34.9]} 69... Ra5 {[%clk 0:00:15.5]} 70. Rb8
{[%clk 0:02:34.4]} 70... Rd5 {[%clk 0:00:15.3]} 71. Ra8 {[%clk 0:02:34.8]} 71...
g5 {[%clk 0:00:15.2]} 72. hxg5 {[%clk 0:02:34.4]} 72... fxg5 {[%clk 0:00:16.6]}
73. Rf8+ {[%clk 0:02:34.9]} 73... Kg6 {[%clk 0:00:16.8]} 74. Ra8 {[%clk
0:02:30.6]} 74... Rd6 {[%clk 0:00:14]} 75. Rb8 {[%clk 0:02:30.5]} 75... Rf6
{[%clk 0:00:14.8]} 76. Ra8 {[%clk 0:02:31]} 76... Kf5 {[%clk 0:00:15.2]} 77.
Ra5+ {[%clk 0:02:31.7]} 77... Kg6 {[%clk 0:00:16.5]} 78. Ra8 {[%clk 0:02:32.4]}
78... h4+ {[%clk 0:00:17]} 79. Kg2 {[%clk 0:02:31]} 79... Rd6 {[%clk 0:00:17.6]}
80. Rg8+ {[%clk 0:02:29.5]} 80... Kf5 {[%clk 0:00:18]} 81. Rf8+ {[%clk
0:02:30.5]} 81... Ke5 {[%clk 0:00:18.3]} 82. Rg8 {[%clk 0:02:28.4]} 82... Kf5
{[%clk 0:00:18.9]} 83. Rf8+ {[%clk 0:02:29.3]} 83... Rf6 {[%clk 0:00:19.5]} 84.
Re8 {[%clk 0:02:29.6]} 84... Rf7 {[%clk 0:00:18.3]} 85. Rg8 {[%clk 0:02:02.7]}
85... Kf4 {[%clk 0:00:15.3]} 86. Re8 {[%clk 0:01:59.2]} 86... h3+ {[%clk
0:00:13]} 87. Kxh3 {[%clk 0:01:37.8]} 87... Kxf3 {[%clk 0:00:13.8]} 88. Kh2
{[%clk 0:01:38.7]} 88... Kf2 {[%clk 0:00:09.4]} 89. Kh3 {[%clk 0:01:39.4]} 89...
Kf3 {[%clk 0:00:03.6]} 90. Kh2 {[%clk 0:01:40.3]} 90... g4 {[%clk 0:00:04.6]}
91. Ra8 {[%clk 0:01:16.7]} 91... Re7 {[%clk 0:00:04.7]} 92. Ra3+ {[%clk
0:01:16.1]} 92... Kf4 {[%clk 0:00:06.1]} 93. Ra4+ {[%clk 0:01:16.2]} 93... Kg5
{[%clk 0:00:07.4]} 94. Kg3 {[%clk 0:01:17.1]} 94... Re3+ {[%clk 0:00:07.8]} 95.
Kg2 {[%clk 0:01:18.2]} 95... Kh4 {[%clk 0:00:08.8]} 96. Ra2 {[%clk 0:01:15.4]}
96... Rg3+ {[%clk 0:00:09.9]} 97. Kh2 {[%clk 0:01:16.4]} 97... Rh3+ {[%clk
0:00:11.4]} 98. Kg2 {[%clk 0:01:17.5]} 98... Rc3 {[%clk 0:00:12.4]} 99. Rb2
{[%clk 0:01:14.7]} 99... Ra3 {[%clk 0:00:13.1]} 100. Rc2 {[%clk 0:01:15.5]}
100... Rb3 {[%clk 0:00:14]} 101. Ra2 {[%clk 0:01:16.2]} 101... Rc3 {[%clk
0:00:15.1]} 102. Rb2 {[%clk 0:01:17.2]} 102... Rd3 {[%clk 0:00:16.2]} 103. Ra2
{[%clk 0:01:18.1]} 103... Re3 {[%clk 0:00:17.3]} 104. Rb2 {[%clk 0:01:19]}
104... Re5 {[%clk 0:00:17.7]} 105. Ra2 {[%clk 0:01:18.9]} 105... Rf5 {[%clk
0:00:18.7]} 106. Rb2 {[%clk 0:01:19.7]} 106... Rd5 {[%clk 0:00:19.6]} 107. Ra2
{[%clk 0:01:20.6]} 107... Kg5 {[%clk 0:00:20.8]} 108. Rb2 {[%clk 0:01:21.2]}
108... Rc5 {[%clk 0:00:20.4]} 109. Ra2 {[%clk 0:01:22]} 109... Rc4 {[%clk
0:00:20.9]} 110. Rb2 {[%clk 0:01:22.9]} 110... Kf4 {[%clk 0:00:20.9]} 111. Rf2+
{[%clk 0:01:23.1]} 111... Kg5 {[%clk 0:00:21.6]} 112. Ra2 {[%clk 0:01:23.5]}
112... Rc3 {[%clk 0:00:21.2]} 113. Rb2 {[%clk 0:01:24.2]} 113... Rc5 {[%clk
0:00:21.6]} 114. Ra2 {[%clk 0:01:24.9]} 114... Rb5 {[%clk 0:00:22.7]} 115. Rc2
{[%clk 0:01:25.5]} 115... Rb3 {[%clk 0:00:22.9]} 116. Rd2 {[%clk 0:01:26.3]}
116... Kh4 {[%clk 0:00:22.4]} 117. Rc2 {[%clk 0:01:26.8]} 117... Rd3 {[%clk
0:00:21.2]} 118. Rb2 {[%clk 0:01:27.1]} 118... Rd4 {[%clk 0:00:22]} 119. Ra2
{[%clk 0:01:27.9]} 119... Rd7 {[%clk 0:00:22.8]} 120. Rb2 {[%clk 0:01:28.9]}
120... Re7 {[%clk 0:00:23.6]} 121. Ra2 {[%clk 0:01:29.9]} 121... Rf7 {[%clk
0:00:24.4]} 122. Rb2 {[%clk 0:01:30.8]} 122... Rf4 {[%clk 0:00:24.3]} 123. Ra2
{[%clk 0:01:31.6]} 123... g3 {[%clk 0:00:25.5]} 124. Rb2 {[%clk 0:01:29.5]}
124... Kg4 {[%clk 0:00:26.4]} 125. Ra2 {[%clk 0:01:30.4]} 125... Rb4 {[%clk
0:00:26.9]} 126. Rc2 {[%clk 0:01:30.6]} 126... Ra4 {[%clk 0:00:27.8]} 127. Rb2
{[%clk 0:01:31.3]} 127... Kf4 {[%clk 0:00:28.7]} 128. Rc2 {[%clk 0:01:31.2]}
128... Rb4 {[%clk 0:00:29.6]} 129. Ra2 {[%clk 0:01:31.7]} 129... Rc4 {[%clk
0:00:30.4]} 130. Rb2 {[%clk 0:01:32.4]} 130... Rd4 {[%clk 0:00:30.8]} 131. Rc2
{[%clk 0:01:33]} 131... Re4 {[%clk 0:00:31.7]} 132. Ra2 {[%clk 0:01:33.6]}
132... Kg4 {[%clk 0:00:31.6]} 133. Rb2 {[%clk 0:01:34.3]} 133... Ra4 {[%clk
0:00:31.8]} 134. Rc2 {[%clk 0:01:35]} 134... Ra3 {[%clk 0:00:31.6]} 135. Rb2
{[%clk 0:01:35.6]} 135... Rc3 {[%clk 0:00:32]} 136. Rb4+ {[%clk 0:01:35.8]}
136... Kf5 {[%clk 0:00:32.4]} 137. Ra4 {[%clk 0:01:36.3]} 137... Rd3 {[%clk
0:00:32.9]} 138. Rb4 {[%clk 0:01:37]} 138... Re3 {[%clk 0:00:33.4]} 139. Ra4
{[%clk 0:01:37.7]} 139... Rb3 {[%clk 0:00:33.7]} 140. Rc4 {[%clk 0:01:38.1]}
140... Ra3 {[%clk 0:00:34.2]} 141. Rb4 {[%clk 0:01:38.7]} 141... Kg5 {[%clk
0:00:34.7]} 142. Rc4 {[%clk 0:01:39.3]} 142... Rb3 {[%clk 0:00:35.1]} 143. Rd4
{[%clk 0:01:39.9]} 143... Re3 {[%clk 0:00:35.1]} 144. Rc4 {[%clk 0:01:40.5]}
144... Kf5 {[%clk 0:00:35.8]} 145. Rb4 {[%clk 0:01:41.2]} 145... Ke5 {[%clk
0:00:36.4]} 146. Ra4 {[%clk 0:01:41.9]} 146... Rd3 {[%clk 0:00:36.3]} 147. Rb4
{[%clk 0:01:42.6]} 147... Kf5 {[%clk 0:00:35.7]} 148. Ra4 {[%clk 0:01:43.5]}
148... Rb3 {[%clk 0:00:36.1]} 149. Rc4 {[%clk 0:01:44.1]} 149... Ra3 {[%clk
0:00:36.7]} 150. Rb4 {[%clk 0:01:44.8]} 150... Kg6 {[%clk 0:00:36.1]} 151. Rg4+
{[%clk 0:01:45.3]} 151... Kf5 {[%clk 0:00:36.5]} 152. Rxg3 {[%clk 0:01:46.2]}
152... Ra2+ {[%clk 0:00:37.5]} 153. Kh3 {[%clk 0:01:46.8]} 153... Kf4 {[%clk
0:00:37.3]} 154. Rg4+ {[%clk 0:01:45.1]} 154... Kf3 {[%clk 0:00:37.2]} 155. Rg3+
{[%clk 0:01:46.1]} 155... Kf4 {[%clk 0:00:38.2]} 156. Rg4+ {[%clk 0:01:47.1]}
156... Kf5 {[%clk 0:00:39.4]} 157. Rg3 {[%clk 0:01:47.4]} 157... Ra1 {[%clk
0:00:38.7]} 158. Rf3+ {[%clk 0:01:47.8]} 158... Ke4 {[%clk 0:00:38.7]} 159. Rg3
{[%clk 0:01:48.2]} 159... Rh1+ {[%clk 0:00:38.7]} 160. Kg2 {[%clk 0:01:48.5]}
1/2-1/2

[Event "GrandPrix_29.05"]
[Site "Chess.com"]
[Date "2020.05.29"]
[Round "4"]
[White "Carpe7Diem"]
[Black "Korona_91"]
[Result "1/2-1/2"]
[WhiteElo "2087"]
[BlackElo "1975"]
[TimeControl "600+2"]
[EndTime "10:40:02 PDT"]
[Termination "Game drawn by agreement"]

1. c4 {[%clk 0:10:01.9]} 1... e5 {[%clk 0:09:59.9]} 2. Nc3 {[%clk 0:10:02.4]}
2... Nc6 {[%clk 0:10:00.3]} 3. g3 {[%clk 0:10:02.6]} 3... g6 {[%clk 0:09:59.1]}
4. Bg2 {[%clk 0:10:02.6]} 4... Bg7 {[%clk 0:09:59.5]} 5. e3 {[%clk 0:10:02.8]}
5... d6 {[%clk 0:09:58.7]} 6. Nge2 {[%clk 0:10:02.1]} 6... f5 {[%clk 0:09:59.3]}
7. b3 {[%clk 0:10:01.1]} 7... Nf6 {[%clk 0:09:59.8]} 8. Bb2 {[%clk 0:10:01.2]}
8... O-O {[%clk 0:09:59.7]} 9. O-O {[%clk 0:10:01.5]} 9... Be6 {[%clk
0:09:58.1]} 10. d4 {[%clk 0:09:30.5]} 10... Bf7 {[%clk 0:09:56.6]} 11. Nd5
{[%clk 0:09:28.4]} 11... e4 {[%clk 0:09:41.2]} 12. Nxf6+ {[%clk 0:09:14.2]}
12... Bxf6 {[%clk 0:09:37.5]} 13. Qd2 {[%clk 0:09:09.3]} 13... Ne7 {[%clk
0:09:34.9]} 14. d5 {[%clk 0:09:04.6]} 14... Bxb2 {[%clk 0:09:31.5]} 15. Qxb2
{[%clk 0:09:06.5]} 1/2-1/2

[Event "GrandPrix_29.05"]
[Site "Chess.com"]
[Date "2020.05.29"]
[Round "4"]
[White "Jaka_Brilej"]
[Black "Chessbuster123"]
[Result "1-0"]
[WhiteElo "2168"]
[BlackElo "1980"]
[TimeControl "600+2"]
[EndTime "10:43:15 PDT"]
[Termination "Jaka_Brilej won by checkmate"]

1. e4 {[%clk 0:10:01.9]} 1... c5 {[%clk 0:10:00.9]} 2. Nf3 {[%clk 0:10:02.2]}
2... d6 {[%clk 0:10:02.3]} 3. d4 {[%clk 0:10:02.9]} 3... cxd4 {[%clk 0:10:04.2]}
4. Nxd4 {[%clk 0:10:02.3]} 4... Nf6 {[%clk 0:10:05.7]} 5. Nc3 {[%clk 0:10:03.3]}
5... a6 {[%clk 0:10:07.1]} 6. f3 {[%clk 0:10:03.9]} 6... e5 {[%clk 0:10:07.7]}
7. Nb3 {[%clk 0:10:04.4]} 7... Be7 {[%clk 0:10:09.2]} 8. Be3 {[%clk 0:10:05]}
8... O-O {[%clk 0:10:10.5]} 9. Qd2 {[%clk 0:10:05.7]} 9... b5 {[%clk 0:10:11]}
10. O-O-O {[%clk 0:10:06.2]} 10... Nbd7 {[%clk 0:10:06.4]} 11. g4 {[%clk
0:09:59.2]} 11... b4 {[%clk 0:10:07.5]} 12. Ne2 {[%clk 0:09:50.2]} 12... a5
{[%clk 0:10:08.3]} 13. Kb1 {[%clk 0:09:50.9]} 13... a4 {[%clk 0:09:57.7]} 14.
Nbc1 {[%clk 0:09:51.4]} 14... Qa5 {[%clk 0:09:59.2]} 15. Ng3 {[%clk 0:09:48.7]}
15... Nb6 {[%clk 0:09:24.3]} 16. Nf5 {[%clk 0:09:45.3]} 16... Bxf5 {[%clk
0:09:25]} 17. gxf5 {[%clk 0:09:47.2]} 17... Rfc8 {[%clk 0:09:26.2]} 18. Rg1
{[%clk 0:09:46]} 18... Nc4 {[%clk 0:09:12.8]} 19. Bxc4 {[%clk 0:09:46.6]} 19...
Rxc4 {[%clk 0:09:14.7]} 20. Bh6 {[%clk 0:09:23.4]} 20... Ne8 {[%clk 0:09:13.8]}
21. Bxg7 {[%clk 0:09:15]} 21... Nxg7 {[%clk 0:09:14.7]} 22. Qh6 {[%clk
0:09:14.8]} 22... Kf8 {[%clk 0:08:42.3]} 23. f6 {[%clk 0:08:57.6]} 23... Bxf6
{[%clk 0:08:34.9]} 24. Qxf6 {[%clk 0:08:52]} 24... Ne6 {[%clk 0:08:35]} 25. Rxd6
{[%clk 0:08:33.7]} 25... Qc5 {[%clk 0:08:20.8]} 26. Rgd1 {[%clk 0:08:13.3]}
26... b3 {[%clk 0:08:06.8]} 27. Qh8+ {[%clk 0:07:56]} 27... Ke7 {[%clk
0:08:06.7]} 28. Rd7# {[%clk 0:07:56.2]} 1-0